{"text_format":"3","workbook":"xlsx","n_sheets":4,"sheets":["Meilensteine","Leitplan","Info","Diagrammdaten"],"not_rendered":{"charts":1,"defined_names":2},"read":"whole","date_system":"1900"}

{"sheet":"Meilensteine","index":0,"n_rows":27,"n_cols":5,"rows_kept":27}
["Erstellen Sie einen Leitplan, indem Sie wichtige Meilensteine und Aktivitäten auf diesem Arbeitsblatt eingeben.\nDer Titel dieses Arbeitsblatts befindet sich in Zelle C1. \nInformationen zur Verwendung dieses Arbeitsblatts, einschließlich Anweisungen für die Sprachausgabe, finden Sie auf dem Arbeitsblatt \"Info\".\nNavigieren Sie weiterhin in Spalte A abwärts, um weitere Anweisungen anzuzeigen.",null,"Meilensteine"]
["Die Tabellenüberschriften befinden sich in den Zellen C2 bis E2. Verwenden Sie die Optionen zum Sortieren und Filtern, um zu sortieren oder bestimmte Einträge zu finden.\nGeben Sie Meilensteine mit dem Datum ein, und legen Sie in der Tabelle ab Zelle C3 eine Position für den Meilenstein im Diagramm fest.\nSpalte B wurde ausgeblendet. Das Diagramm wird aus diesen Daten generiert und verwendet eine Scrollleiste, um Abschnitte der Zeitachse anzuzeigen. Spalte B hilft bei der Bestimmung der darzustellenden Meilensteine, wenn die Scrollleiste schrittweise erhöht wird. \nWarnung: Das Löschen oder Ändern von Inhalten der Spalte B kann die Integrität der in diese Arbeitsmappe integrierten Diagrammerstellung stören.","Nr.","Position","Datum","Meilenstein"]
["Geben Sie die Position zum Darstellen von Datum und Meilenstein in Zelle C1 ein. Geben Sie eine positive Zahl zwischen 1 und 3 ein, um den Meilenstein oberhalb der Zeitachse darzustellen. Geben Sie eine negative Zahl zwischen 1 und 3 ein, um den Meilenstein unterhalb der Zeitachse darzustellen.\nGeben Sie das Datum und den Meilenstein oder die Aktivität in Spalte D und E in der Tabelle ein.\nWiederholen Sie dieses Muster für jede neue Zeile in der Tabelle rechts.\nBeispieldaten stehen in den Zeilen 3 bis 26 zur Verfügung. Ändern oder löschen Sie Beispielinhalte, um Ihren eigenen Leitplan zu erstellen.\nFahren Sie mit Zelle A27 fort, um die nächste Anweisung zu erhalten.",{"$f":"ROW($A1)","v":1},1,{"$f":"TODAY()","v":"2018-06-27"},"Start"]
[null,{"$f":"ROW($A2)","v":2},-2,{"$f":"D3+10","v":"2018-07-07"},"Problemanalyse\nAktivität 1"]
[null,3,1,{"$f":"D4+20","v":"2018-07-27"},"Geschäftsszenario entwickeln\nAktivität 1\nAktivität 2"]
[null,4,-1,{"$f":"D5+30","v":"2018-08-26"},"Präsentation überprüfen"]
[null,5,{"v":-0.5,"d":"-1"},{"$f":"D6+40","v":"2018-10-05"},"Projektbeginn für Führungskräfte\nAktivität 1\nAktivität 2"]
[null,6,2,{"$f":"D7+50","v":"2018-11-24"},"Ausrichtung Führungskräfte\nAktivität 1\nAktivität 2\nAktivität 3"]
[null,7,{"v":0.5,"d":"1"},{"$f":"D8+60","v":"2019-01-23"},"Beteiligung von Stakeholdern"]
[null,8,-1,{"$f":"D9+70","v":"2019-04-03"},"Ressourcenauswahl"]
[null,9,{"v":0.5,"d":"1"},{"$f":"D10+80","v":"2019-06-22"},"Teamaufbau\nAktivität 1 "]
[null,10,-2,{"$f":"D11+90","v":"2019-09-20"},"Projektbeginn für Team\nAktivität 1 \nAktivität 2\nAktivität 3\nAktivität 4"]
[null,11,3,{"$f":"D12+100","v":"2019-12-29"},"Start der Datensammlung"]
[null,12,-1,{"$f":"D13+90","v":"2020-03-28"},"Datenanalyse"]
[null,13,1,{"$f":"D14+80","v":"2020-06-16"},"Entwurf"]
[null,14,1,{"$f":"D15+70","v":"2020-08-25"},"Machbarkeitsstudie"]
[null,15,-3,{"$f":"D16+60","v":"2020-10-24"},"Tests und Analysen"]
[null,16,-2,{"$f":"D17+50","v":"2020-12-13"},"Umgestaltung"]
[null,17,2,{"$f":"D18+40","v":"2021-01-22"},"Neuentwicklung"]
[null,18,-1,{"$f":"D19+30","v":"2021-02-21"},"Tests und Analysen"]
[null,19,1,{"$f":"D20+20","v":"2021-03-13"},"Umgestaltung"]
[null,20,-3,{"$f":"D21+10","v":"2021-03-23"},"Neuentwicklung"]
[null,21,2,{"$f":"D22+20","v":"2021-04-12"},"Abschlusstest"]
[null,22,1,{"$f":"D23+30","v":"2021-05-12"},"Betatest"]
[null,23,-3,{"$f":"D24+40","v":"2021-06-21"},"Überprüfung"]
[null,24,-2,{"$f":"D25+50","v":"2021-08-10"},"Freigabe für Marketing"]
["Um der Meilensteintabelle für den Leitplan weitere Zeilen hinzuzufügen, fügen Sie einfach eine neue Zeile über dieser hier ein.\nDieses Arbeitsblatt enthält keine weiteren Anweisungen.",null,"Um weitere Meilensteine hinzuzufügen, fügen Sie neue Zeilen über dieser ein."]

{"sheet":"Leitplan","index":1,"n_rows":3,"n_cols":4,"rows_kept":3}
["Auf diesem Arbeitsblatt befindet sich ein Diagramm mit der Darstellung der Meilensteine vom Arbeitsblatt \"Meilensteine\". \nDie Jahre sind in den Zellen B2, C2 und D2 angegeben und weisen die Formatvorlage \"Überschrift 3\" auf.\nEs werden jeweils 10 Meilensteine zugleich im Diagramm angezeigt. \nVerwenden Sie die Scrollleiste in den Zellen B4 bis D4, um im Leitplan zu navigieren.\nDie Jahre der Zeitachse befinden sich in den Zellen B3 bis D3.\nDieses Arbeitsblatt enthält keine weiteren Anweisungen."]
[]
[null,{"$f":"Diagrammdaten!B20","v":2018},{"$f":"Diagrammdaten!B21","v":""},{"$f":"Diagrammdaten!B22","v":2019}]

{"sheet":"Info","index":2,"n_rows":5,"n_cols":1,"rows_kept":5}
["Informationen zu dieser Arbeitsmappe"]
["Leitfaden für die Sprachausgabe"]
["Diese Arbeitsmappe enthält 4 Arbeitsblätter. \n\nMeilensteine\nLeitplan\nInfo\nDiagrammdaten (ausgeblendet)\n\nDie Anweisungen für jedes Arbeitsblatt befinden sich in Spalte A ab Zelle A1 der einzelnen Arbeitsblätter. Sie sind in verborgenem Text geschrieben. Jeder Schritt führt Sie durch die Informationen in der betreffenden Zeile. Jeder nachfolgende Schritt fährt in den Zellen A2, A3 usw. fort, sofern nicht ausdrücklich anders angegeben. Beispielsweise kann der Anweisungstext etwa für den nächsten Schritt \"Mit Zelle 6 fortfahren\" besagen. \n\nVerborgener Text wird nicht gedruckt.\n\nUm diese Anweisungen von einem der Arbeitsblätter zu entfernen, löschen Sie einfach Spalte A.\n"]
["Dieser Leitfaden verwendet Positionen, um Meilensteine und Aktivitäten anzuordnen. Positionen können verwendet werden, um einem Meilenstein oder einer Aktivität mehr Gewicht zu verleihen. Passen Sie die Werte einfach entsprechend Ihrer bevorzugten Gewichtung an. Beispielsweise kann Meilenstein/Aktivität 3 ein höheres Gewicht als Meilenstein/Aktivität 2 haben. Um dies im Diagramm anzuzeigen, legen Sie den Positionswert für Meilenstein/Aktivität 3 auf einen höheren Wert als den für Meilenstein/Aktivität 2 fest.  \n"]
["Dies ist die letzte Anweisung auf diesem Arbeitsblatt."]

{"sheet":"Diagrammdaten","index":3,"n_rows":26,"n_cols":4,"rows_kept":26,"hidden":true}
["Dieses Arbeitsblatt enthält Daten zum Erstellen der dynamischen Diagrammerstellung. Löschen Sie dieses Arbeitsblatt nicht!\nDas Löschen dieses Arbeitsblatts könnte die dynamische Funktionsweise der Arbeitsmappe beschädigen.","Löschen Sie dieses Arbeitsblatt nicht!"]
["Der Titel für die Tabelle befindet sich in Zelle B2.","Inhalte für das dynamische Diagramm"]
["Die Tabellenüberschriften befinden sich in den Zellen B3 bis D3. \nDiese Tabelle wird automatisch auf der Grundlage der Inhalte aktualisiert, die auf dem Arbeitsblatt \"Meilensteine\" eingegeben wurden.\nWarnung: Das Ändern oder Löschen von Inhalten in dieser Tabelle kann die Möglichkeit zur dynamischen Aktualisierung des Leitplan auf dem Arbeitsblatt \"Leitplan\" beeinträchtigen.\nFahren Sie mit Zelle A15 fort, um die nächste Anweisung zu erhalten.","Datum","Ereignisse","Position"]
[null,{"$f":"IFERROR(IF(LEN(Meilensteine!D3)=0,\"\",INDEX(LeitplanweitereZeilen[],Meilensteine!$B3+$B$17,3)),\"\")","v":"2018-06-27"},{"$f":"IFERROR(IF(LEN(Meilensteine!E3)=0,\"\",INDEX(LeitplanweitereZeilen[],Meilensteine!$B3+$B$17,4)),\"\")","v":"Start"},{"$f":"IFERROR(INDEX(LeitplanweitereZeilen[],Meilensteine!$B3+$B$17,2),\"\")","v":1}]
[null,{"$f":"IFERROR(IF(LEN(Meilensteine!D4)=0,\"\",INDEX(LeitplanweitereZeilen[],Meilensteine!$B4+$B$17,3)),\"\")","v":"2018-07-07"},{"$f":"IFERROR(IF(LEN(Meilensteine!E4)=0,\"\",INDEX(LeitplanweitereZeilen[],Meilensteine!$B4+$B$17,4)),\"\")","v":"Problemanalyse\nAktivität 1"},{"$f":"IFERROR(INDEX(LeitplanweitereZeilen[],Meilensteine!$B4+$B$17,2),\"\")","v":-2}]
[null,{"$f":"IFERROR(IF(LEN(Meilensteine!D5)=0,\"\",INDEX(LeitplanweitereZeilen[],Meilensteine!$B5+$B$17,3)),\"\")","v":"2018-07-27"},{"$f":"IFERROR(IF(LEN(Meilensteine!E5)=0,\"\",INDEX(LeitplanweitereZeilen[],Meilensteine!$B5+$B$17,4)),\"\")","v":"Geschäftsszenario entwickeln\nAktivität 1\nAktivität 2"},{"$f":"IFERROR(INDEX(LeitplanweitereZeilen[],Meilensteine!$B5+$B$17,2),\"\")","v":1}]
[null,{"$f":"IFERROR(IF(LEN(Meilensteine!D6)=0,\"\",INDEX(LeitplanweitereZeilen[],Meilensteine!$B6+$B$17,3)),\"\")","v":"2018-08-26"},{"$f":"IFERROR(IF(LEN(Meilensteine!E6)=0,\"\",INDEX(LeitplanweitereZeilen[],Meilensteine!$B6+$B$17,4)),\"\")","v":"Präsentation überprüfen"},{"$f":"IFERROR(INDEX(LeitplanweitereZeilen[],Meilensteine!$B6+$B$17,2),\"\")","v":-1}]
[null,{"$f":"IFERROR(IF(LEN(Meilensteine!D7)=0,\"\",INDEX(LeitplanweitereZeilen[],Meilensteine!$B7+$B$17,3)),\"\")","v":"2018-10-05"},{"$f":"IFERROR(IF(LEN(Meilensteine!E7)=0,\"\",INDEX(LeitplanweitereZeilen[],Meilensteine!$B7+$B$17,4)),\"\")","v":"Projektbeginn für Führungskräfte\nAktivität 1\nAktivität 2"},{"$f":"IFERROR(INDEX(LeitplanweitereZeilen[],Meilensteine!$B7+$B$17,2),\"\")","v":-0.5}]
[null,{"$f":"IFERROR(IF(LEN(Meilensteine!D8)=0,\"\",INDEX(LeitplanweitereZeilen[],Meilensteine!$B8+$B$17,3)),\"\")","v":"2018-11-24"},{"$f":"IFERROR(IF(LEN(Meilensteine!E8)=0,\"\",INDEX(LeitplanweitereZeilen[],Meilensteine!$B8+$B$17,4)),\"\")","v":"Ausrichtung Führungskräfte\nAktivität 1\nAktivität 2\nAktivität 3"},{"$f":"IFERROR(INDEX(LeitplanweitereZeilen[],Meilensteine!$B8+$B$17,2),\"\")","v":2}]
[null,{"$f":"IFERROR(IF(LEN(Meilensteine!D9)=0,\"\",INDEX(LeitplanweitereZeilen[],Meilensteine!$B9+$B$17,3)),\"\")","v":"2019-01-23"},{"$f":"IFERROR(IF(LEN(Meilensteine!E9)=0,\"\",INDEX(LeitplanweitereZeilen[],Meilensteine!$B9+$B$17,4)),\"\")","v":"Beteiligung von Stakeholdern"},{"$f":"IFERROR(INDEX(LeitplanweitereZeilen[],Meilensteine!$B9+$B$17,2),\"\")","v":0.5}]
[null,{"$f":"IFERROR(IF(LEN(Meilensteine!D10)=0,\"\",INDEX(LeitplanweitereZeilen[],Meilensteine!$B10+$B$17,3)),\"\")","v":"2019-04-03"},{"$f":"IFERROR(IF(LEN(Meilensteine!E10)=0,\"\",INDEX(LeitplanweitereZeilen[],Meilensteine!$B10+$B$17,4)),\"\")","v":"Ressourcenauswahl"},{"$f":"IFERROR(INDEX(LeitplanweitereZeilen[],Meilensteine!$B10+$B$17,2),\"\")","v":-1}]
[null,{"$f":"IFERROR(IF(LEN(Meilensteine!D11)=0,\"\",INDEX(LeitplanweitereZeilen[],Meilensteine!$B11+$B$17,3)),\"\")","v":"2019-06-22"},{"$f":"IFERROR(IF(LEN(Meilensteine!E11)=0,\"\",INDEX(LeitplanweitereZeilen[],Meilensteine!$B11+$B$17,4)),\"\")","v":"Teamaufbau\nAktivität 1 "},{"$f":"IFERROR(INDEX(LeitplanweitereZeilen[],Meilensteine!$B11+$B$17,2),\"\")","v":0.5}]
[null,{"$f":"IFERROR(IF(LEN(Meilensteine!D12)=0,\"\",INDEX(LeitplanweitereZeilen[],Meilensteine!$B12+$B$17,3)),\"\")","v":"2019-09-20"},{"$f":"IFERROR(IF(LEN(Meilensteine!E12)=0,\"\",INDEX(LeitplanweitereZeilen[],Meilensteine!$B12+$B$17,4)),\"\")","v":"Projektbeginn für Team\nAktivität 1 \nAktivität 2\nAktivität 3\nAktivität 4"},{"$f":"IFERROR(INDEX(LeitplanweitereZeilen[],Meilensteine!$B12+$B$17,2),\"\")","v":-2}]
[]
["Die Möglichkeit, durch den Leitplan zu scrollen, wird mithilfe eines Inkrementwerts umgesetzt. Der Titel für diese Funktion befindet sich in Zelle B15.\nEine Tabelle mit einer Überschrift und einem einzelnen Wert befindet sich in den Zellen B16 und B17.\nFahren Sie mit Zelle A19 fort, um die nächste Anweisung zu erhalten.","Scrollfunktion"]
[null,"Zeileninkrement"]
[null,0]
[]
["Das Leitplandiagramm zeichnet die Jahre für die Zeitachse. Zu diesem Zweck müssen die Jahre in der Liste der Meilensteine erfasst werden. \nDer Titel für diesen Abschnitt ist \"Jahr\" in Zelle B19. \nDie Jahreswerte werden in den Zellen C20 bis C22 automatisch erstellt.\nWarnung: Das Löschen oder Ändern dieser Jahre kann sich auf die Genauigkeit der Diagrammerstellung des Leitplan auswirken.\nFahren Sie mit Zelle A24 fort, um die nächste Anweisung zu erhalten.","Jahr"]
[null,{"$f":"IFERROR(YEAR(B4),\"\")","v":2018},"<-- Jahr für die Anfangsposition des Leitplans"]
[null,{"$f":"IFERROR(IF(YEAR($B$9)=$B$20,\"\",YEAR($B$9)),\"\")","v":""},"<-- Jahr für den mittleren Abschnitt des Leitplans. Beachten Sie, dass dieser Wert leer sein kann, wenn es sich um das gleiche Jahr wie an der Anfangsposition des Leitplans handelt"]
[null,{"$f":"IFERROR(IF(YEAR($B$13)=$B$20,\"\",YEAR($B$13)),\"\")","v":2019},"<-- Jahr für die letzte Position des Leitplans. Beachten Sie, dass dieser Wert leer sein kann, wenn es sich um das gleiche Jahr wie an der Anfangsposition des Leitplans handelt"]
[]
["Ringmarkierungen im Leitplan enthalten Datumswerte aus den dynamischen Diagramminhalten auf diesem Arbeitsblatt. Die Datumswerte sind das erstes Datum in Zelle C24, das mittleres Datum in Zelle C25 und das letztes Datum in Zelle C26.\nDieses Arbeitsblatt enthält keine weiteren Anweisungen.","Erstes Datum",{"$f":"B4","v":"2018-06-27"}]
[null,"Mittleres Datum",{"$f":"B9","v":"2018-11-24"}]
[null,"Letztes Datum",{"$f":"B13","v":"2019-09-20"}]